Cogmind - Beta 13 @@@ ROGUE MODE // 2024.04.02 @ 19:08:05 Player: frawding Result: Destroyed by 3A-CR9(R) with Subdweller Laser Performance ------------- Evolutions (0) 0 Regions Visited (2) 400 Robots Destroyed (35) 175 Value Destroyed (721) 721 Prototype IDs (0) 0 Alien Tech Used (0) 0 Bonus (0) 0 TOTAL SCORE: 1296 Bonus ------- None Cogmind --------- Core Integrity 0/250 Matter 300/300 Energy 100/100 System Corruption 0% Temperature Cool (15) Movement Treading (160) Location -10/Subcaves Parts ------- > --- POWER (1) -------- (None) > --- PROPULSION (2) --- Light Treads > --- UTILITY (2) ------ (None) > --- WEAPON (2) ------- Hammer > --- INVENTORY (5) ---- Large Storage Unit Huge Storage Unit Targeting Computer Peak State ------------ > --- POWER ------------ Ion Engine > --- PROPULSION ------- Light Treads Light Treads > --- UTILITY ---------- Scrap Shield > --- WEAPON ----------- Assault Rifle Hammer > --- INVENTORY -------- Large Storage Unit Huge Storage Unit Targeting Computer [Rating: 9] Favorites ----------- Power Ion Engine Engine Ion Engine Propulsion Light Treads Treads Light Treads Utility Large Storage Unit Storage Large Storage Unit Protection Propulsion Shielding Weapon Assault Rifle Ballistic Gun Assault Rifle Launcher Grenade Launcher Impact Weapon Hammer Build | -11 -10 -10 ------- Run | Yrd Mat Sub Slots Evolved . | . . . Power . | . . . Propulsion . | . . . Utility . | . . . Weapon . | . . . Parts Attached 18 | 4 13 1 Power 2 | 1 1 . Engine 2 | 1 1 . Core . | . . . Reactor . | . . . Propulsion 4 | 2 2 . Treads 4 | 2 2 . Leg . | . . . Wheel . | . . . Hover . | . . . Flight . | . . . Utility 7 | 1 5 1 Device . | . . . Storage 5 | 1 4 . Processor . | . . . Hackware . | . . . Protection 2 | . 1 1 Artifact . | . . . Weapon 5 | . 5 . Energy Gun . | . . . Energy Cannon . | . . . Ballistic Gun 2 | . 2 . Ballistic Cannon . | . . . Launcher 2 | . 2 . Special Weapon . | . . . Impact Weapon 1 | . 1 . Slashing Weapon . | . . . Piercing Weapon . | . . . Special Melee Weapon . | . . . Unidentified Prototypes . | . . . Parts Lost 8 | . 3 5 Power 2 | . 1 1 Propulsion 1 | . . 1 Utility 2 | . . 2 Weapon 3 | . 2 1 Highest Loss Streak 5 | . 2 5 To Critical Strikes . | . . . Average Slot Usage (%) 92 | . 91 98 Engine 13 | . 13 14 Treads 27 | . 27 27 Storage 14 | . 14 13 Protection 11 | . 10 13 Ballistic Gun 10 | . 10 14 Launcher 3 | . 3 . Impact Weapon 10 | . 9 14 Naked Turns . | . . . Heaviest Build 87 | 10 87 30 Greatest Support 40 | 40 40 40 Greatest Overweight (x) 2 | . 2 1 Average Overweight (x) . | . . . Largest Inventory Capacity 25 | 8 25 15 Average Capacity 14 | 7 15 14 Most Carried 5 | 4 5 4 Average Carried 2 | 1 2 3 Final Capacity 15 | 8 15 5 Final Carried 3 | 1 2 3 Class Distribution -------------------- 100% | Mutant Dominant Class ---------------- Mutant | -10/Materials Mutant | -10/Subcaves Resources | -11 -10 -10 ----------- Run | Yrd Mat Sub Matter Collected 672 | 213 449 10 Remotely . | . . . Salvage Created 810 | . 771 39 Parts 51 | . 49 2 Haulers Intercepted 1 | . 1 . Recyclers Shooed . | . . . Parts Field Recycled . | . . . Retrieved Matter . | . . . Parts Self-Destructed . | . . . Prevented . | . . . Kills | -11 -10 -10 ------- Run | Yrd Mat Sub Combat Hostiles Destroyed 17 | . 16 1 Melee 2 | . 2 . Guns 2 | . 2 . AOE 8 | . 8 . Classes Destroyed 11 | . 10 1 Worker 4 | . 4 . Builder 4 | . 4 . Tunneler 2 | . 2 . Hauler 1 | . 1 . Recycler 2 | . 2 . Mechanic 1 | . 1 . Operator 1 | . 1 . Watcher 3 | . 3 . Swarmer 2 | . 2 . Grunt 14 | . 14 . Subdweller 1 | . . 1 Best Kill Streak 8 | . 8 1 Combat Bots Only 6 | . 6 1 Max Kills in Single Turn 2 | . 2 1 Gunslinging . | . . . Exploded 2 | . 2 . Melee 1 | . 1 . Uniques/NPCs Destroyed . | . . . Combat | -11 -10 -10 -------- Run | Yrd Mat Sub Hostile Shots Fired 126 | . 96 30 Missed 33 | . 26 7 Damage Taken 1305 | . 792 513 Core 258 | . 127 131 Absorbed by Shields . | . . . Redirected to Shielding 54 | . 48 6 Regen/Repaired (Parts) 113 | . 113 . Core Remaining (%) 100 | 100 . . Volleys Fired 44 | . 44 . Largest 2 | . 2 . Hottest 50 | . 50 . Shots Fired 58 | . 58 . Gun 39 | . 39 . Cannon . | . . . Launcher 19 | . 19 . Special . | . . . Kinetic 39 | . 39 . Thermal . | . . . Explosive 19 | . 19 . Electromagnetic . | . . . Robot Hit Streak 6 | . 6 . Robot Miss Streak 4 | . 4 . Penetration Max . | . . . Secondary Targets . | . . . Shots Hit Robots 63 | . 58 5 Core Hits 36 | . 35 1 Critical Kills . | . . . Critical Parts Destroyed 11 | . 10 1 Critical Strikes 11 | . 10 1 Smash 11 | . 10 1 Melee Attacks 59 | . 41 18 Impact 59 | . 41 18 Slashing . | . . . Piercing . | . . . Sneak Attacks 14 | . 14 . Combat Hostiles . | . . . Follow-up Attacks . | . . . Damage Inflicted 2541 | . 2414 127 Guns 253 | . 253 . Cannons . | . . . Explosions 1015 | . 1015 . Melee 1273 | . 1146 127 Ramming . | . . . Kinetic 253 | . 253 . Thermal . | . . . Explosive 1015 | . 1015 . Electromagnetic . | . . . Impact 1273 | . 1146 127 Slashing . | . . . Piercing . | . . . Highest Corruption . | . . . Average Corruption . | . . . Corruption Purged . | . . . Corruption Blocked . | . . . Overload Shots . | . . . Overflow Damage 455 | . 440 15 Projectiles . | . . . Explosions 21 | . 21 . Melee 434 | . 419 15 Knockbacks 1 | . 1 . Impact 1 | . 1 . Kinetic . | . . . Secondary . | . . . Self-Inflicted Damage 131 | . 131 . Shots 2 | . 2 . Rammed . | . . . Targets Rammed . | . . . Kicked . | . . . Crushed . | . . . Highest Temperature 5 | . 5 . Average Temperature 3 | . 3 . Received Heat Transfer 285 | . 189 96 Siege Activations . | . . . Robots Corrupted . | . . . Combat Hostiles . | . . . Parts Fried 22 | . 21 1 Impact Corruptions 20 | . 19 1 Robots Melted . | . . . Combat Hostiles . | . . . Parts Melted . | . . . Heat Transferred . | . . . Parts Sabotaged . | . . . Parts Stolen . | . . . Parts Stripped . | . . . Power Chain Reactions . | . . . Alert | -11 -10 -10 ------- Run | Yrd Mat Sub Peak Influence 367 | . 367 . Initial . | . . . Average 156 | . 159 . Maximum Alert Level 1 | . 1 . Low Security (%) 77 | 100 76 . Level 1 22 | . 23 . Level 2 . | . . . Level 3 . | . . . Level 4 . | . . . Level 5 . | . . . High Security . | . . . Max Security . | . . . Squads Dispatched 5 | . 5 . Investigation 4 | . 4 . Extermination . | . . . Reinforcement 1 | . 1 . Assault . | . . . Garrison . | . . . Intercept . | . . . Searches Triggered . | . . . Construction Impeded . | . . . Haulers Reinforced . | . . . Active Scanning Responses . | . . . Cargo Convoy Interrupts . | . . . Stealth | -11 -10 -10 --------- Run | Yrd Mat Sub Distress Signals 3 | . 3 . Communications Jammed . | . . . Distress Signals . | . . . Times Spotted 33 | . 24 9 Peak Tracking Total 8 | . 5 8 Tactical Retreats 1 | . 1 . Traps | -11 -10 -10 ------- Run | Yrd Mat Sub Traps Triggered 5 | . 5 . Indirectly . | . . . Trap Hack Attempts . | . . . Triggered . | . . . Disarmed . | . . . Reprogrammed . | . . . Reused . | . . . Traps Extracted . | . . . Installed . | . . . Triggered . | . . . Machines | -11 -10 -10 ---------- Run | Yrd Mat Sub Machines Disabled 4 | . 4 . Max in Single Turn 2 | . 2 . Machines Repaired . | . . . Machines Dismantled . | . . . Machines Sabotaged . | . . . Overloaded Fab Kills . | . . . Hacking | -11 -10 -10 --------- Run | Yrd Mat Sub Machines Accessed 1 | . 1 . Terminals . | . . . Fabricators . | . . . Repair Stations 1 | . 1 . Recycling Units . | . . . Scanalyzers . | . . . Garrison Access . | . . . Total Hacks 4 | . 4 . Successful 2 | . 2 . Failed 2 | . 2 . Catastrophic . | . . . Database Lockouts . | . . . Manual . | . . . Terminals . | . . . Fabricators . | . . . Repair Stations 4 | . 4 . Recycling Units . | . . . Scanalyzers . | . . . Garrison Access . | . . . Terminal Hacks . | . . . Fabricator Hacks . | . . . Repair Station Hacks 2 | . 2 . Scan Component 1 | . 1 . Repair 1 | . 1 . Recycling Unit Hacks . | . . . Scanalyzer . | . . . Garrison Access Hacks . | . . . Unauthorized Hacks . | . . . Terminals . | . . . Fabricators . | . . . Repair Stations . | . . . Recycling Units . | . . . Scanalyzers . | . . . Garrison Access . | . . . Data Cores Recovered . | . . . Used . | . . . Hacking Detections 1 | . 1 . Full Trace Events 1 | . 1 . Feedback Events . | . . . Feedback Blocked . | . . . Robot Schematics Acquired . | . . . Robots Built . | . . . Authchips . | . . . Time . | . . . Total Robot Build Rating . | . . . Part Schematics Acquired . | . . . Parts Built . | . . . Authchips . | . . . Time . | . . . Total Part Build Rating . | . . . Parts Repaired 1 | . 1 . Time 13 | . 13 . Parts Recycled . | . . . Recycled Matter . | . . . Retrieved Matter . | . . . Retrieved Components . | . . . Parts Scanalyzed . | . . . Part Schematics Acquired . | . . . Parts Damaged . | . . . Bothacking | -11 -10 -10 ------------ Run | Yrd Mat Sub Used RIF Installer . | . . . Robots Hacked . | . . . Non-combat . | . . . Combat . | . . . Robot Hacks Applied . | . . . Relay Couplers Released . | . . . Fabnet Peak Effective % . | . . . Robots Rewired . | . . . Allies Hacked . | . . . Hacks Repelled . | . . . Allies | -11 -10 -10 -------- Run | Yrd Mat Sub Total Allies . | . . . Largest Group . | . . . Highest-Rated Group . | . . . Highest-Rated Ally . | . . . Total Orders . | . . . Ally Attacks . | . . . Total Damage . | . . . Kills . | . . . Allies Corrupted . | . . . Allies Melted . | . . . Intel | -11 -10 -10 ------- Run | Yrd Mat Sub Robot Analysis Total . | . . . Derelict Logs Recovered 1 | . . 1 Drone Launches . | . . . Drone Recoveries . | . . . Exploration | -11 -10 -10 ------------- Run | Yrd Mat Sub Turns Passed 2725 | 47 2221 457 Spaces Moved 1454 | 33 1173 248 Core 12 | 12 . . Treads 1442 | 21 1173 248 Legs . | . . . Wheels . | . . . Hover . | . . . Flight . | . . . Fastest Speed 50 | 50 160 160 Average Speed 159 | 120 160 160 Slowest Speed 320 | 160 320 240 Overloaded Moves . | . . . Propulsion Burnouts . | . . . Robots Hopped . | . . . Cave-ins Triggered . | . . . Exploration Rate (%) 35 | 3 97 5 Regions Visited 2 Branch Regions 1 Pre-discovered Areas 2 | . . 2 Known Exits Taken . | . . . Unknown Exits Taken 2 | 1 1 . Scrap Searched . | . . . Spaces Dug . | . . . Terrain Destroyed 116 | . 116 . Melee . | . . . Projectile . | . . . AOE 116 | . 116 . Terrain Rammed . | . . . Walls Destroyed . | . . . Machines Disabled . | . . . Actions | -11 -10 -10 --------- Run | Yrd Mat Sub Total 1699 | 41 1381 277 Wait 101 | . 93 8 Move 1452 | 32 1172 248 Hop . | . . . Pick Up 17 | 5 11 1 Fast Attach . | . . . Attach 17 | 4 12 1 Detach 6 | . 5 1 Swap 1 | . 1 . Drop 2 | . 2 . Fire 44 | . 44 . Melee 59 | . 41 18 Ram . | . . . Kick . | . . . Crush . | . . . Escape Stasis . | . . . Rewire . | . . . Trap . | . . . Miscellaneous . | . . . Route ------- -11/Scrapyard -10/Materials (discovered 6 exits: [*Mat x3] / [*Min x2] / [*Sub]) -10/Subcaves History --------- Turn | Location | Event 7 | -11/Scrapyard | Discovered new exit (range 16) 48 | -11/Scrapyard | Entered Materials 117 | -10/Materials | Discovered new exit (range 14) 306 | -10/Materials | Build established: Mutant 352 | -10/Materials | Discovered new exit (range 15) 522 | -10/Materials | Discovered new exit (range 5) 813 | -10/Materials | Discovered new exit (range 15) 1107 | -10/Materials | Repaired Lgt. Treads 1203 | -10/Materials | Discovered new exit (range 8) 1285 | -10/Materials | Core integrity fell below 50% 1931 | -10/Materials | Discovered new exit (range 9) 2269 | -10/Materials | Entered Subcaves 2279 | -10/Subcaves | Learned location of Zion (-6) 2617 | -10/Subcaves | Met a Zionite searching for "candidates" 2697 | -10/Subcaves | Ambushed by swarm of Subdwellers 2704 | -10/Subcaves | Ambushed by Subdwellers from Twisted Machinery 2704 | -10/Subcaves | Ambushed by Subdwellers from Twisted Machinery 2723 | -10/Subcaves | Core integrity fell below 20% 2726 | -10/Subcaves | Destroyed by 3A-CR9(R) with Subdweller Laser Last Messages --------------- Machinery. 02705_ 3D-6IS(z) destroyed. 02707_ Subatomizers dissect the Mak. Terrain Scanner. 02709_ Acquired 10 matter. 02710_ E5-VTQ(R) affixes Scrap Shield Fragment to Scrap Shield. 02711_ Lgt. Treads destroyed. 02712_ ME-KDR(R) emerges from the Twisted Machinery. 02712_ 8H-029(h) destroyed. 02714_ E5-VTQ(R) affixes Scrap Shield Fragment to Scrap Shield. 02716_ E5-VTQ(R) destroyed. 02717_ Subatomizers dissect the Mak. Terrain Scanner. 02721_ Assault Rifle destroyed. 02721_ Ion Engine destroyed. 02723_ Scrap Shield destroyed. 02725_ PD-RUO(R) destroyed. Map ----- +----------------------------------------------------+ | ?????????????????????????????????????????????????? | | ?????????????????????????????????????????????????? | | ?????????????????????????????????????????????????? | | ?????????????????????????????????????????????????? | | ?????????????????????????????????????????????????? | | ?????????????????????????????????????????????????? | | ?????????????????????????????????????????????????? | | ?????????????????????????????????????????????????? | | ?????????????????????????????????????????????????? | | ?????????????????????????????????????????????????? | | ?????????????????????????????????????????????????? | | ????????????????????????####?????????????????????? | | ??????????????????????### ###???????????????????? | | ??????????????????????# #####???????????#??## | | ??????????????????????# ####????????#$## | | ??????????????????????# #????????# # # | | ??????????????????????# #????????## ## | | ??????????????????????# !% ##??????### ##? | | ??????????????????????## ##???????# ##?? | | ???????????????????????# ! ####??????### ##??? | | ???????????????????????## # %##?????##### #???? | | ???????????????????????## # * #?????# ###???? | | ???????????????????????# R%=% #????## #####?????? | | ???????????????????????##RR= ###??## ##?????????? | | ????????????????????????#!RRR # #### # #?????????? | | ????????????????????????#@%#""# # ####?????????? | | ????????????????????????###&## ## ##????????????? | | ?????????????????????????# #########?????????????? | | ?????????????????????????# ??????????????????????? | | ?????????????????????????#???????????????????????? | | ?????????????????????????????????????????????????? | | ?????????????????????????????????????????????????? | | ?????????????????????????????????????????????????? | | ?????????????????????????????????????????????????? | | ?????????????????????????????????????????????????? | | ?????????????????????????????????????????????????? | | ?????????????????????????????????????????????????? | | ?????????????????????????????????????????????????? | | ?????????????????????????????????????????????????? | | ?????????????????????????????????????????????????? | | ?????????????????????????????????????????????????? | | ?????????????????????????????????????????????????? | | ?????????????????????????????????????????????????? | | ?????????????????????????????????????????????????? | | ?????????????????????????????????????????????????? | | ?????????????????????????????????????????????????? | | ?????????????????????????????????????????????????? | | ?????????????????????????????????????????????????? | | ?????????????????????????????????????????????????? | | ?????????????????????????????????????????????????? | +----------------------------------------------------+ Best States ------------- Heat Dissipation 25 Energy Generation 10 Energy Capacity 250 Matter Stores 300 Matter Capacity 300 Sight Range 16 Terrain Scan Density 10 Armor Coverage 800 Propulsion Shielding 33 Evasion (%) 50 Recoil Reduction 2 Item Schematics ----------------- None Robot Schematics ------------------ None Fabricated ------------ Nothing Alien Tech Used ----------------- None Achievements -------------- None Challenges ------------ None Game ------ Seed CoolingCatalystMachine Manual? 0 Play Time 00:21:29 Cumulative 7.1 hours Start 2024.04.02 @ 18:39:46 End 2024.04.02 @ 19:08:05 Sessions 2 Manual Loads 0 Difficulty Rogue Special Mode None Game No. 8 Rogue 8 Adventurer 0 Explorer 0 Win Type - Total 0 Types 0/0/0/0/0/0/0/0/0 Lore% 15 Gallery% 12 Achievement% 12 Wizard Run 0 Options --------- Layout 1 ASCII 0 Keyboard 0 Movement Mouse Keybinds 0 Fullscreen 1 Font 24/Smallcaps Map View 50x35 Zoom Use 0% Tactical HUD 1 Map Filters NONE Filters NONE Steam 1 RUN: c857d7f9-0e80-4cbb-899e-d1bcf6879ed5